bitfinex/quotes_BTCUSD_20250414
["timestamp","ask_amount","ask_price","bid_price","bid_amount"]
[1744638839150,0.236568,84542.0,84541.0,0.28584154]
[1744638839272,0.011827,84546.0,84541.0,0.28584154]
[1744638839479,0.236566,84543.0,84542.0,0.12084154]
[1744638839891,0.236566,84543.0,84542.0,0.28584154]
[1744638840539,0.236566,84543.0,84542.0,0.12084154]
[1744638840714,0.236566,84543.0,84542.0,0.28584154]
[1744638842135,0.236566,84543.0,84542.0,0.12084154]
[1744638842336,0.236582,84537.0,84536.0,1.10628]
[1744638842516,0.236582,84537.0,84536.0,0.12084154]
[1744638842739,0.236607,84528.0,84523.0,0.165]
[1744638842944,0.236607,84528.0,84527.0,0.12084154]
[1744638843441,0.248432,84530.0,84527.0,0.12084154]
[1744638843638,0.236605,84529.0,84528.0,0.12084154]
[1744638844049,0.23674354,84529.0,84528.0,0.12084154]
[1744638844608,0.00013854,84529.0,84528.0,0.12084154]
[1744638844829,0.00013854,84529.0,84528.0,0.3598145]
[1744638844955,0.00013854,84529.0,84528.0,0.35744854]
[1744638845163,0.00013854,84529.0,84528.0,0.77572584]
[1744638845376,0.00013854,84529.0,84528.0,0.94076584]
[1744638846437,0.00013854,84529.0,84528.0,0.94276584]
[1744638846794,0.00013854,84529.0,84528.0,0.94076584]
[1744638846999,0.00013854,84529.0,84528.0,0.94276584]
[1744638848458,0.00013854,84529.0,84528.0,0.94176584]
[1744638848676,0.23674354,84529.0,84528.0,0.54111884]
[1744638848803,0.23674354,84529.0,84528.0,0.70615884]
[1744638849221,0.23674354,84529.0,84523.0,0.16504]
[1744638849464,0.011831,84520.0,84515.0,0.236642]
[1744638849670,0.011832,84511.0,84508.0,0.4182773]
[1744638849871,0.236663,84508.0,84507.0,1.27128]
[1744638850020,0.236663,84508.0,84507.0,1.39212154]
[1744638850646,0.236663,84508.0,84507.0,1.27128]
[1744638850851,0.236663,84508.0,84507.0,1.10624]
[1744638851051,0.236663,84508.0,84507.0,1.26976]
[1744638851418,0.236663,84508.0,84507.0,1.10624]
[1744638851534,0.238663,84508.0,84507.0,1.26976]
[1744638851907,0.238663,84508.0,84507.0,1.10624]
[1744638852312,0.002,84508.0,84507.0,1.22708154]
[1744638853182,0.239663,84508.0,84507.0,1.39060154]
[1744638853457,0.003,84508.0,84507.0,1.39060154]
[1744638853659,0.003,84508.0,84507.0,0.12084154]
[1744638853858,0.003,84508.0,84503.0,0.011833]
[1744638853859,0.236694,84497.0,84492.0,0.400228]
[1744638854040,0.236695,84497.0,84496.0,0.12084154]
[1744638854421,0.236695,84497.0,84481.0,0.16356]
[1744638855324,0.23683346,84497.0,84481.0,0.16356]
[1744638855898,0.23683346,84497.0,84476.0,1.10652]
[1744638856074,0.23883346,84497.0,84476.0,1.10652]
[1744638856278,0.24083346,84497.0,84476.0,1.10652]
[1744638856461,0.23883346,84497.0,84476.0,1.10652]
[1744638856663,0.34,84496.0,84473.0,0.0008426]
[1744638856916,0.34,84496.0,84474.0,0.16356]
[1744638857705,0.345,84496.0,84474.0,0.16356]
[1744638857881,0.005,84496.0,84491.0,0.236709]
[1744638858087,0.005,84496.0,84487.0,0.011836]
[1744638858462,0.005,84496.0,84489.0,0.24855]
[1744638858616,0.005,84496.0,84489.0,0.011835]
[1744638858817,0.005,84496.0,84488.0,0.011836]
[1744638859042,0.005,84496.0,84490.0,0.011835]
[1744638859467,0.007,84496.0,84490.0,0.011835]
[1744638859623,0.002,84496.0,84490.0,0.011835]
[1744638859825,0.002,84496.0,84482.0,0.011836]
[1744638860034,0.01,84496.0,84483.0,0.011836]
[1744638860217,0.01,84496.0,84480.0,0.011837]
[1744638860218,0.002,84496.0,84480.0,0.011837]
[1744638860422,0.002,84496.0,84474.0,0.175397]
[1744638860625,0.007,84496.0,84480.0,0.011837]
[1744638860866,0.007,84496.0,84482.0,0.011836]
[1744638861008,0.007,84496.0,84483.0,0.011836]
[1744638861215,0.007,84496.0,84487.0,0.011836]
[1744638861433,0.007,84496.0,84485.0,0.248564]
[1744638861653,0.007,84496.0,84484.0,0.011836]
[1744638861993,0.007,84496.0,84485.0,0.011836]
[1744638862190,0.007,84496.0,84486.0,0.011836]
[1744638862474,0.007,84496.0,84485.0,0.011836]
[1744638862696,0.007,84496.0,84486.0,0.011836]
[1744638863056,0.007,84496.0,84478.0,0.1636]
[1744638863296,0.007,84496.0,84482.0,0.011836]
[1744638863515,0.007,84496.0,84481.0,0.011836]
[1744638863927,0.007,84496.0,84483.0,0.011836]
[1744638864112,0.243697,84496.0,84481.0,0.011836]
[1744638864312,0.243697,84496.0,84485.0,0.248562]
[1744638864622,0.243697,84496.0,84484.0,0.011836]
[1744638864778,0.243697,84496.0,84485.0,0.011836]
[1744638865178,0.243697,84496.0,84484.0,0.248567]
[1744638865400,0.17958615,84496.0,84484.0,0.248567]
[1744638865575,0.00013846,84497.0,84495.0,0.2375426]
[1744638865758,0.23683346,84497.0,84495.0,0.0008426]
[1744638865963,0.00013846,84497.0,84495.0,0.0008426]
[1744638866204,0.00013846,84497.0,84495.0,0.2375406]
[1744638866382,0.00013846,84497.0,84496.0,0.35753854]
[1744638867183,0.00313846,84497.0,84496.0,0.35753854]
[1744638867442,0.00013846,84497.0,84496.0,0.35753854]
[1744638867803,0.00313846,84497.0,84496.0,0.52113854]
[1744638868227,4.6e-07,84497.0,84496.0,0.52113854]
[1744638868540,4.6e-07,84497.0,84496.0,0.90643854]
[1744638868884,0.011829,84533.0,84530.0,0.236601]
[1744638869030,0.002,84559.0,84531.0,0.28444154]
[1744638869031,0.011827,84546.0,84531.0,0.28444154]
[1744638869245,0.248399,84541.0,84538.0,0.248407]
[1744638869441,0.011828,84543.0,84539.0,0.12084154]
[1744638869692,0.011828,84543.0,84539.0,0.13266954]
[1744638869902,0.236571,84541.0,84539.0,0.12084154]
[1744638871296,0.011827,84546.0,84539.0,0.12084154]
[1744638871297,0.011828,84545.0,84540.0,0.236572]
[1744638871502,0.248391,84544.0,84541.0,0.12084154]
[1744638871903,0.23709881,84553.0,84541.0,0.12084154]
[1744638872082,0.011827,84552.0,84547.0,0.011827]
[1744638872285,0.236544,84551.0,84548.0,0.53277854]
[1744638872487,0.236546,84550.0,84548.0,0.28440154]
[1744638872746,0.248371,84551.0,84548.0,0.28440154]
[1744638873290,0.00055981,84553.0,84552.0,0.23654]
[1744638873491,0.00055981,84553.0,84552.0,0.35738154]
[1744638878315,0.00055981,84553.0,84552.0,0.70560688]
[1744638879252,0.00055981,84553.0,84552.0,0.69738154]
[1744638879786,0.00055981,84553.0,84552.0,0.69838154]
[1744638880166,0.00055981,84553.0,84552.0,0.70438154]
[1744638880401,0.00055981,84553.0,84552.0,1.12265884]
[1744638880597,0.00055981,84553.0,84552.0,1.11565884]
[1744638880798,0.00055981,84553.0,84552.0,1.12065884]
[1744638881036,0.00055981,84553.0,84552.0,1.12886701]
[1744638881202,0.00055981,84553.0,84552.0,1.13706622]
[1744638881406,0.00055981,84553.0,84552.0,1.14006622]
[1744638881958,0.00055981,84553.0,84552.0,1.13706622]
[1744638882159,0.00055981,84553.0,84552.0,1.13206622]
[1744638882299,0.00055981,84553.0,84552.0,1.13806622]
[1744638883146,0.00055981,84553.0,84552.0,1.14106622]
[1744638883798,0.0004213,84575.0,84552.0,1.14106622]
[1744638883799,7e-07,84570.0,84569.0,0.625393]
[1744638884005,7e-07,84570.0,84569.0,1.86068271]
[1744638884215,7e-07,84570.0,84569.0,2.02284271]
[1744638884544,7e-07,84570.0,84569.0,2.03104192]
[1744638884744,7e-07,84570.0,84569.0,2.07654192]
[1744638884950,7e-07,84570.0,84569.0,2.07854192]
[1744638885148,1e-06,84575.0,84574.0,0.576479]
[1744638885369,1e-06,84575.0,84574.0,0.72006956]
[1744638885731,1e-06,84575.0,84574.0,0.70552871]
[1744638886117,1e-06,84575.0,84574.0,0.71372792]
[1744638886537,1e-06,84575.0,84574.0,0.71972792]
[1744638887077,1e-06,84575.0,84574.0,0.88184792]
[1744638887275,1e-06,84575.0,84574.0,0.88484792]
[1744638889334,1e-06,84575.0,84574.0,0.87664871]
[1744638890842,1e-06,84575.0,84574.0,0.88818956]
[1744638891042,7e-07,84577.0,84576.0,0.59101385]
[1744638891269,7e-07,84577.0,84576.0,0.71185539]
[1744638891407,7e-07,84577.0,84576.0,0.72003025]
[1744638891609,7e-07,84577.0,84576.0,0.71369757]
[1744638892164,7e-07,84577.0,84576.0,0.72069757]
[1744638892992,7e-07,84577.0,84576.0,0.71369757]
[1744638893164,7e-07,84577.0,84576.0,0.71869757]
[1744638893369,7e-07,84577.0,84576.0,0.72169757]
[1744638894974,7e-07,84577.0,84576.0,0.71669757]
[1744638895159,7e-07,84577.0,84576.0,0.71969757]
[1744638895360,7e-07,84577.0,84576.0,0.87060271]
[1744638895748,7e-07,84577.0,84576.0,0.87160271]
[1744638896400,7e-07,84577.0,84576.0,0.53160271]
[1744638896565,7e-07,84577.0,84576.0,0.36952271]
[1744638896773,7e-07,84577.0,84576.0,0.53160271]
[1744638897171,7e-07,84577.0,84576.0,0.53060271]
[1744638898640,7e-07,84577.0,84576.0,0.53160271]
[1744638898988,7e-07,84577.0,84576.0,0.36952271]
[1744638899306,7e-07,84577.0,84576.0,0.53060271]
[1744638899509,7e-07,84577.0,84576.0,0.53160271]
[1744638899734,7e-07,84577.0,84576.0,0.13304971]
[1744638899891,0.2364707,84577.0,84576.0,0.29512971]
[1744638900107,7e-07,84577.0,84576.0,0.52239454]
[1744638900403,7e-07,84577.0,84576.0,0.52339454]
[1744638900628,7e-07,84577.0,84576.0,0.52039454]
[1744638900803,7e-07,84577.0,84576.0,0.52239454]
[1744638901214,0.2364707,84577.0,84576.0,0.003]
[1744638901587,0.24825197,84577.0,84576.0,0.003]
[1744638902038,0.24825197,84577.0,84576.0,0.002]
[1744638902249,0.23649,84570.0,84569.0,1.1058]
[1744638902449,0.23651,84563.0,84562.0,0.16208]
[1744638903037,0.236508,84564.0,84562.0,0.16208]
[1744638903247,0.236507,84564.0,84562.0,0.16208]
[1744638903475,0.23651,84563.0,84562.0,0.16208]
[1744638904247,0.011825,84565.0,84562.0,0.16208]
[1744638904467,7e-07,84577.0,84570.0,0.011824]
[1744638904675,0.236482,84573.0,84566.0,0.011825]
[1744638905029,0.248302,84574.0,84570.0,0.011824]
[1744638905210,0.011823,84575.0,84571.0,0.011824]
[1744638905435,7e-07,84577.0,84576.0,0.236473]
[1744638905564,0.2364727,84577.0,84576.0,0.12084154]
[1744638905771,0.011824,84570.0,84566.0,0.001]
[1744638905980,0.0118237,84577.0,84571.0,0.011824]
[1744638905981,0.248297,84576.0,84571.0,0.011824]
[1744638906176,0.011823,84574.0,84571.0,0.248309]
[1744638906419,0.236482,84573.0,84570.0,0.011824]
[1744638906566,0.236482,84573.0,84570.0,0.13266554]
[1744638906769,7e-07,84577.0,84574.0,0.011823]
[1744638906997,7e-07,84577.0,84576.0,0.236473]
[1744638907175,7e-07,84577.0,84576.0,0.12084154]
[1744638907741,0.2364707,84577.0,84576.0,0.12084154]
[1744638908279,7e-07,84577.0,84576.0,0.12084154]
[1744638908663,0.2364707,84577.0,84576.0,0.12084154]
[1744638909071,0.2364707,84577.0,84570.0,0.248314]
[1744638909293,0.248299,84575.0,84572.0,0.236484]
[1744638909496,0.236479,84574.0,84573.0,0.12084154]
[1744638909790,0.011824,84569.0,84566.0,0.16208]
[1744638910128,0.236496,84568.0,84567.0,0.12084154]
[1744638912273,0.236493,84569.0,84567.0,0.12084154]
[1744638912476,0.236496,84568.0,84567.0,0.12084154]
[1744638912641,0.236487,84571.0,84568.0,0.236493]
[1744638912843,0.236484,84573.0,84569.0,0.12084154]
[1744638913207,0.23649,84570.0,84569.0,0.12084154]
[1744638914569,0.23649,84571.0,84569.0,0.12084154]
[1744638914771,7e-07,84577.0,84576.0,0.236473]
[1744638915025,7e-07,84577.0,84576.0,0.12084154]
[1744638915395,0.2364707,84577.0,84576.0,0.12084154]
[1744638915955,7e-07,84577.0,84576.0,0.12084154]
[1744638916361,0.2364707,84577.0,84576.0,0.12910991]
[1744638916571,0.2364707,84577.0,84576.0,0.00826837]
[1744638916983,0.75731632,84577.0,84576.0,3.7e-07]
[1744638917194,0.236546,84550.0,84549.0,0.16416]
[1744638917438,0.236557,84546.0,84536.0,0.0008422]
[1744638917635,0.236568,84542.0,84536.0,0.0008422]
[1744638917836,0.236568,84542.0,84541.0,0.00098071]
[1744638920374,0.25310885,84542.0,84541.0,0.00098071]
[1744638920579,0.576582,84537.0,84536.0,9.1e-07]
[1744638921165,0.71196439,84537.0,84536.0,9.1e-07]
[1744638921566,0.576582,84537.0,84536.0,9.1e-07]
[1744638921786,0.59112285,84537.0,84536.0,9.1e-07]
[1744638921992,0.71196439,84537.0,84536.0,9.1e-07]
[1744638923118,0.71196439,84537.0,84508.0,0.16416]
[1744638923119,0.59114585,84529.0,84508.0,0.16416]
[1744638923318,0.576605,84529.0,84508.0,0.16416]
[1744638923497,0.59114585,84529.0,84508.0,0.16416]
[1744638925350,0.59214585,84529.0,84508.0,0.16416]
[1744638925587,0.59214585,84529.0,84507.0,0.0008422]
[1744638925768,0.63734585,84529.0,84507.0,0.0008422]
[1744638925970,0.75818739,84529.0,84507.0,0.0008422]
[1744638926719,0.63734585,84529.0,84507.0,0.0008422]
[1744638926920,0.63634585,84529.0,84507.0,0.0008422]
[1744638927528,0.63734585,84529.0,84507.0,0.0008422]
[1744638927833,0.87160788,84529.0,84528.0,2e-07]
[1744638928039,0.75818739,84529.0,84528.0,2e-07]
[1744638928949,0.75718739,84529.0,84528.0,2e-07]
[1744638929070,1.17868739,84529.0,84528.0,2e-07]
[1744638929471,1.17368739,84529.0,84528.0,2e-07]
[1744638929888,1.17868739,84529.0,84528.0,2e-07]
[1744638930259,0.4215,84529.0,84528.0,2e-07]
[1744638930445,0.4165,84529.0,84528.0,2e-07]
[1744638930849,0.4215,84529.0,84528.0,2e-07]
[1744638932128,0.658105,84529.0,84528.0,2e-07]
[1744638932559,0.653105,84529.0,84528.0,2e-07]
[1744638933002,0.657105,84529.0,84528.0,2e-07]
[1744638933872,1.13248739,84529.0,84528.0,2e-07]
[1744638934230,1.13348739,84529.0,84528.0,2e-07]
[1744638934435,1.13348739,84529.0,84507.0,0.0008422]
[1744638934436,0.576663,84508.0,84507.0,0.0008422]
[1744638935923,0.578663,84508.0,84507.0,0.00130429]
[1744638936470,0.576663,84508.0,84507.0,0.00130429]
[1744638936666,0.584663,84508.0,84507.0,0.00130429]
[1744638936984,0.579663,84508.0,84507.0,0.00130429]
[1744638937166,0.580663,84508.0,84507.0,0.00130429]
[1744638937371,0.583663,84508.0,84507.0,0.00130429]
[1744638937859,0.007,84508.0,84507.0,0.00130429]
[1744638938640,0.004,84508.0,84507.0,0.00130429]
[1744638939035,0.006,84508.0,84507.0,0.00130429]
[1744638939472,0.011832,84512.0,84508.0,0.248496]
[1744638939673,0.011832,84511.0,84508.0,0.011833]
[1744638939875,0.011832,84512.0,84508.0,0.248495]
[1744638940090,0.23665,84513.0,84510.0,0.248489]
[1744638940665,0.011832,84514.0,84511.0,0.236655]
[1744638940875,0.248477,84515.0,84511.0,0.248487]
[1744638941022,0.24848,84514.0,84509.0,0.0458]
[1744638941213,0.011832,84512.0,84509.0,0.16664154]
[1744638941414,0.248485,84512.0,84509.0,0.16664154]
[1744638941837,0.236656,84511.0,84509.0,0.16664154]
[1744638942367,0.011832,84513.0,84509.0,0.41513354]
[1744638942570,0.236655,84511.0,84509.0,0.17847454]
[1744638942752,0.001,84513.0,84512.0,0.236652]
[1744638942946,0.236656,84511.0,84509.0,0.16664154]
[1744638943328,0.236663,84508.0,84507.0,0.00130429]
[1744638944487,0.576663,84508.0,84507.0,0.00130429]
[1744638945897,0.577663,84508.0,84507.0,0.00130429]
[1744638946446,0.581663,84508.0,84507.0,0.00130429]
[1744638946651,0.585663,84508.0,84507.0,0.00130429]
[1744638947279,0.009,84508.0,84507.0,0.00130429]
[1744638947476,0.245663,84508.0,84507.0,0.00130429]
[1744638947676,0.004,84508.0,84507.0,0.23797029]
[1744638947985,0.004,84508.0,84507.0,0.00130429]
[1744638947986,0.240663,84508.0,84507.0,0.00130429]
[1744638948323,0.004,84508.0,84507.0,0.00130429]
[1744638948542,0.236663,84508.0,84507.0,0.00130429]
[1744638948986,0.244663,84508.0,84507.0,0.00130429]
[1744638949284,0.239663,84508.0,84507.0,0.00130429]
[1744638949440,0.34,84515.0,84509.0,0.011833]
[1744638949669,0.236656,84511.0,84509.0,0.011833]
[1744638949875,0.24849,84510.0,84507.0,0.00130429]
[1744638950107,0.236661,84509.0,84507.0,0.00130429]
[1744638950438,0.011831,84518.0,84510.0,0.011832]
[1744638950597,0.248479,84514.0,84510.0,0.011832]
[1744638950809,0.011831,84519.0,84514.0,0.011832]
[1744638951042,0.236646,84515.0,84512.0,0.011832]
[1744638951216,0.236649,84514.0,84507.0,0.00130429]
[1744638951415,0.236663,84508.0,84507.0,0.00130429]
[1744638952479,0.72079759,84508.0,84507.0,2.9e-07]
[1744638952678,0.60828631,84508.0,84507.0,2.9e-07]
[1744638952939,0.61028631,84508.0,84507.0,2.9e-07]
[1744638953300,0.5874152,84508.0,84507.0,2.9e-07]
[1744638953596,0.5854152,84508.0,84507.0,2.9e-07]
[1744638953801,0.5914152,84508.0,84507.0,2.9e-07]
[1744638954006,0.5944152,84508.0,84507.0,2.9e-07]
[1744638954350,0.60895605,84508.0,84507.0,2.9e-07]
[1744638954554,0.72979759,84508.0,84507.0,2.9e-07]
[1744638955055,0.57668,84502.0,84501.0,2.9e-07]
[1744638956499,0.23968,84502.0,84501.0,2.9e-07]
[1744638956655,0.23968,84502.0,84501.0,0.12084183]
[1744638956980,0.007,84502.0,84501.0,0.12084183]
[1744638957234,0.007,84502.0,84501.0,0.35752483]
[1744638958766,0.004,84502.0,84501.0,0.12084183]
[1744638958922,0.006,84502.0,84501.0,0.12084183]
[1744638959117,0.002,84502.0,84501.0,0.12084183]
[1744638959319,0.23868,84502.0,84501.0,0.12084183]
[1744638959920,0.23668,84502.0,84501.0,0.12084183]
[1744638960117,0.23668,84502.0,84501.0,0.12184183]
[1744638960319,0.23668,84502.0,84501.0,0.00100029]
[1744638960723,0.23668,84502.0,84501.0,2.9e-07]
[1744638961183,0.57668,84502.0,84501.0,2.9e-07]
[1744638961393,0.236711,84491.0,84490.0,9e-08]
[1744638961751,0.576748,84478.0,84477.0,2.9e-07]
[1744638962133,0.236759,84474.0,84471.0,6e-07]
[1744638962353,0.236792,84462.0,84461.0,4e-07]
[1744638962554,0.576792,84462.0,84461.0,4e-07]
[1744638963022,0.576792,84462.0,84441.0,0.002]
[1744638963023,0.35184,84453.0,84441.0,0.002]
[1744638963226,0.23684,84445.0,84444.0,0.00098226]
[1744638963758,0.34,84442.0,84441.0,6e-08]
[1744638963958,0.64611087,84442.0,84441.0,6.3e-07]
[1744638964212,0.47538239,84442.0,84441.0,6.3e-07]
[1744638964382,0.34,84442.0,84441.0,6.3e-07]
[1744638965025,0.236846,84443.0,84441.0,6.3e-07]
[1744638965194,0.236846,84443.0,84442.0,0.12084154]
[1744638966088,0.236846,84444.0,84442.0,0.12084154]
[1744638967117,0.236848,84442.0,84441.0,6.3e-07]
[1744638967947,0.576848,84442.0,84441.0,6.3e-07]
[1744638969109,0.586848,84442.0,84441.0,6.3e-07]
[1744638969316,0.580848,84442.0,84441.0,6.3e-07]
[1744638969524,0.67605825,84442.0,84441.0,6.3e-07]
[1744638969724,0.72023039,84442.0,84441.0,6.3e-07]
[1744638970065,1.14173039,84442.0,84441.0,6.3e-07]
[1744638970648,0.236896,84425.0,84424.0,6.3e-07]
[1744638970843,0.236896,84425.0,84424.0,0.00013933]
[1744638971048,0.236902,84423.0,84422.0,1.3e-07]
[1744638971284,0.57704019,84423.0,84422.0,1.3e-07]
[1744638971635,0.23704019,84423.0,84422.0,1.3e-07]
[1744638972682,0.24004019,84423.0,84422.0,1.3e-07]
[1744638972861,0.24204019,84423.0,84422.0,1.3e-07]
[1744638973062,0.23904019,84423.0,84422.0,1.3e-07]
[1744638973265,0.23904019,84423.0,84422.0,0.12084167]
[1744638973471,0.24104019,84423.0,84422.0,0.12084167]
[1744638973717,0.00413819,84423.0,84422.0,0.16754167]
[1744638973945,0.00413819,84423.0,84422.0,0.58581897]
[1744638974111,0.4165,84469.0,84441.0,0.011842]
[1744638974112,0.236837,84447.0,84441.0,0.011842]
[1744638974313,0.236843,84444.0,84442.0,0.1232098]
[1744638974562,0.236843,84444.0,84443.0,0.4182773]
[1744638974763,0.236843,84444.0,84443.0,0.53911884]
[1744638975286,0.011839,84465.0,84448.0,0.011841]
[1744638975560,0.23682,84452.0,84449.0,0.12320952]
[1744638975773,0.236826,84450.0,84449.0,0.12084154]
[1744638976863,0.236826,84450.0,84449.0,0.12284154]
[1744638977391,0.236826,84450.0,84449.0,0.002]
[1744638979132,0.238826,84450.0,84449.0,0.002]
[1744638979658,0.236867,84436.0,84432.0,0.011843]
[1744638979855,0.236867,84436.0,84427.0,0.5814373]
[1744638979856,0.236869,84435.0,84433.0,0.12084154]
[1744638982070,0.236869,84435.0,84433.0,0.12184154]
[1744638982278,0.011842,84440.0,84433.0,0.12184154]
[1744638982279,0.011838,84473.0,84457.0,0.01184]
[1744638982485,0.00013862,84473.0,84465.0,0.011839]
[1744638982725,0.236776,84468.0,84466.0,0.12320921]
[1744638982923,0.236776,84468.0,84466.0,0.12084154]
[1744638983669,0.236795,84461.0,84460.0,0.16316]
[1744638983891,0.236795,84461.0,84460.0,0.28400154]
[1744638984094,0.236795,84461.0,84460.0,0.12084154]
[1744638984656,0.236823,84451.0,84450.0,0.21236]
[1744638984858,0.236823,84451.0,84450.0,0.33320154]
[1744638985979,0.236823,84451.0,84450.0,0.33420154]
[1744638986546,0.236823,84451.0,84450.0,0.17104154]
[1744638987209,0.236814,84455.0,84450.0,0.17104154]
[1744638987422,0.236821,84452.0,84450.0,0.0502]
[1744638987595,0.236821,84452.0,84451.0,0.12084154]
[1744638987996,0.34,84479.0,84454.0,0.01184]
[1744638988216,0.34,84488.0,84461.0,0.011839]
[1744638988359,0.23690062,84473.0,84470.0,0.011838]
[1744638988555,0.23690062,84473.0,84465.0,0.236784]
[1744638988556,0.236764,84472.0,84471.0,0.12084154]
[1744638989615,0.236764,84472.0,84457.0,0.4182773]
[1744638989616,0.236804,84458.0,84457.0,0.4182773]
[1744638989813,0.236804,84458.0,84457.0,0.53911884]
[1744638991088,0.236804,84458.0,84457.0,0.54011884]
[1744638991304,0.236804,84458.0,84457.0,0.001]
[1744638991707,0.3338911,84458.0,84457.0,0.001]
[1744638991913,0.236804,84458.0,84457.0,0.001]
[1744638992225,0.576804,84458.0,84457.0,1e-06]
[1744638992630,1.12868639,84458.0,84457.0,1e-06]
[1744638992831,0.236897,84425.0,84422.0,1.3e-07]
[1744638993136,0.236902,84423.0,84422.0,0.12084167]
[1744638994454,0.236902,84423.0,84422.0,0.12484167]
[1744638994652,0.236902,84423.0,84422.0,0.12084167]
[1744638995820,0.236902,84423.0,84422.0,0.12284167]
[1744638996204,0.236902,84423.0,84422.0,0.12084167]
[1744638996418,0.236902,84423.0,84422.0,0.12184167]
[1744638996625,0.236902,84423.0,84422.0,0.00100013]
[1744638997221,0.248734,84428.0,84422.0,0.12084167]
[1744638997427,0.236889,84428.0,84425.0,0.011844]
[1744638997784,0.236888,84428.0,84426.0,0.12084154]
[1744638998140,0.236888,84428.0,84422.0,1.3e-07]
[1744638998141,0.236902,84423.0,84422.0,1.3e-07]
[1744638999089,0.236902,84423.0,84422.0,0.12084167]
[1744639000422,0.236902,84423.0,84422.0,0.12184167]
[1744639000560,0.236899,84425.0,84422.0,0.12184167]
[1744639000790,0.236899,84425.0,84423.0,0.12084154]
[1744639000791,0.236897,84425.0,84423.0,0.12084154]
[1744639001027,0.236894,84426.0,84423.0,0.12084154]
[1744639001232,0.236899,84424.0,84423.0,0.12084154]
[1744639003474,0.236899,84424.0,84423.0,0.12184154]
[1744639003808,0.236893,84427.0,84423.0,0.37058854]
[1744639004040,0.001,84424.0,84423.0,0.13368654]
[1744639004241,0.001,84424.0,84423.0,0.12084154]
[1744639004441,0.236899,84424.0,84423.0,0.12084154]
[1744639004645,0.236899,84424.0,84423.0,0.12184154]
[1744639004849,0.236899,84424.0,84423.0,0.12084154]
[1744639005616,0.236899,84424.0,84423.0,0.12184154]
[1744639005817,0.236899,84424.0,84423.0,0.001]
[1744639006202,0.236899,84424.0,84423.0,0.003]
[1744639007025,0.236899,84424.0,84423.0,0.002]
[1744639007227,0.236899,84424.0,84423.0,0.003]
[1744639007438,0.576899,84424.0,84423.0,0.003]
[1744639007722,0.576902,84423.0,84422.0,1.3e-07]
[1744639007867,0.576919,84417.0,84416.0,1.3e-07]
[1744639008072,0.75437985,84417.0,84416.0,1.3e-07]
[1744639008299,0.59147085,84413.0,84411.0,5.3e-07]
[1744639008650,0.59148485,84408.0,84407.0,4.3e-07]
[1744639008848,0.576944,84408.0,84407.0,0.00013862]
[1744639009012,0.739864,84408.0,84407.0,0.00013862]
[1744639009192,0.576944,84408.0,84407.0,0.00013862]
[1744639010001,0.240944,84408.0,84407.0,0.12098016]
[1744639010196,0.248784,84410.0,84407.0,0.12098016]
[1744639010400,0.011846,84410.0,84408.0,0.12084154]
[1744639010625,0.005,84413.0,84412.0,0.236933]
[1744639010797,0.011845,84417.0,84412.0,0.13268754]
[1744639010998,0.011845,84418.0,84414.0,0.248772]
[1744639011222,0.236919,84417.0,84415.0,0.12084154]
[1744639011656,0.236921,84416.0,84415.0,0.12084154]
[1744639013175,0.236921,84416.0,84415.0,0.12284154]
[1744639013679,0.011843,84431.0,84426.0,0.011844]
[1744639013823,0.011843,84434.0,84427.0,0.12084154]
[1744639014043,0.011843,84431.0,84428.0,0.236887]
[1744639014282,0.248724,84431.0,84429.0,0.12084154]
[1744639014672,0.236882,84430.0,84429.0,0.12084154]
[1744639015598,0.236882,84430.0,84418.0,0.011845]
[1744639015599,0.236911,84420.0,84418.0,0.011845]
[1744639015828,0.236911,84420.0,84419.0,0.12084154]
[1744639016623,0.248751,84422.0,84416.0,0.4182773]
[1744639016624,0.236919,84417.0,84416.0,0.4182773]
[1744639017072,0.248761,84418.0,84412.0,0.011846]
[1744639017415,0.236933,84412.0,84410.0,0.011846]
[1744639017555,0.236925,84415.0,84411.0,0.12084154]
[1744639017765,0.236933,84412.0,84411.0,0.12084154]
[1744639018421,0.23692,84417.0,84411.0,0.12084154]
[1744639018634,0.2369,84424.0,84412.0,0.12084154]
[1744639018809,0.236905,84422.0,84418.0,0.236916]
[1744639019063,0.248755,84420.0,84419.0,0.12084154]
[1744639019644,0.236933,84412.0,84411.0,0.002]
[1744639019843,0.236944,84408.0,84393.0,0.4182773]
[1744639020167,0.236944,84408.0,84386.0,0.0465]
[1744639020355,0.576944,84408.0,84386.0,0.0465]
[1744639020547,0.576944,84408.0,84382.0,0.0004227]
[1744639020915,0.576944,84408.0,84383.0,0.01185]
[1744639021137,0.576944,84408.0,84382.0,0.0122727]
[1744639021305,0.579944,84408.0,84382.0,0.0122727]
[1744639021526,0.579944,84408.0,84382.0,0.0004227]
[1744639021720,0.59448485,84408.0,84382.0,0.0004227]
[1744639021875,0.59448485,84408.0,84407.0,6.2e-07]
[1744639022276,0.59448485,84408.0,84407.0,0.00100062]
[1744639022496,0.59148485,84408.0,84407.0,6.2e-07]
[1744639022885,0.60048485,84408.0,84407.0,6.2e-07]
[1744639023365,0.59648485,84408.0,84407.0,6.2e-07]
[1744639023743,0.576966,84400.0,84399.0,1.2e-07]
[1744639024100,0.011847,84404.0,84399.0,0.01184812]
[1744639024306,0.011847,84404.0,84399.0,1.2e-07]
[1744639024525,0.236964,84401.0,84399.0,1.2e-07]
[1744639024727,0.00413849,84408.0,84405.0,0.011847]
[1744639024906,0.00413849,84408.0,84406.0,0.35778954]
[1744639025229,0.00413849,84408.0,84406.0,0.12084154]
[1744639025463,0.01013849,84408.0,84406.0,0.35779054]
[1744639025658,0.00613849,84408.0,84406.0,0.35779054]
[1744639025958,0.24308249,84408.0,84406.0,0.12384154]
[1744639026166,0.00613849,84408.0,84406.0,0.12384154]
[1744639026362,0.00013849,84408.0,84406.0,0.12084154]
[1744639026594,0.23708249,84408.0,84406.0,0.002]
[1744639026789,0.23708249,84408.0,84406.0,0.003]
[1744639026790,0.236947,84407.0,84406.0,0.003]
[1744639028442,0.236947,84407.0,84406.0,0.001]
[1744639029182,0.236966,84400.0,84388.0,0.0004225]
[1744639029388,0.011848,84402.0,84395.0,0.011849]
[1744639029589,0.236966,84400.0,84389.0,0.0122716]